bitfinex/quotes_SOLUSD_20260108
["timestamp","ask_amount","ask_price","bid_price","bid_amount"]
[1767883838764,0.28432314,133.7,133.63,13.8210065]
[1767883838979,5.6448582,133.69,133.65,7.4822297]
[1767883839189,5.6448582,133.68,133.64,8.17544165]
[1767883839765,0.41926168,133.71,133.65,0.69286603]
[1767883839964,5.6448582,133.69,133.65,0.69286603]
[1767883840196,0.41926168,133.71,133.65,6.33772423]
[1767883840399,5.6448582,133.7,133.65,6.33772423]
[1767883840893,7.89815115,133.71,133.65,6.33772423]
[1767883841189,5.6448582,133.68,133.64,7.48263017]
[1767883841386,0.099,133.7,133.65,7.48212168]
[1767883841697,5.6448582,133.71,133.66,6.33772423]
[1767883841869,5.6448582,133.69,133.64,8.17549249]
[1767883842072,5.6448582,133.69,133.64,13.82035069]
[1767883842270,5.6448582,133.69,133.65,7.4820156]
[1767883842475,7.89779922,133.72,133.65,13.81973983]
[1767883842681,0.41926168,133.72,133.66,6.33772423]
[1767883842883,0.38432314,133.73,133.67,0.69286603]
[1767883842884,0.48332314,133.73,133.67,0.69286603]
[1767883843081,5.6448582,133.7,133.65,6.33772423]
[1767883843262,0.48332314,133.73,133.65,6.33772423]
[1767883843263,7.47843759,133.72,133.66,0.69286603]
[1767883843479,5.6448582,133.72,133.67,13.12579296]
[1767883844382,5.6448582,133.72,133.67,13.81865899]
[1767883844698,5.7448582,133.73,133.69,0.69286603]
[1767883844897,5.6448582,133.72,133.67,13.81865899]
[1767883845066,5.6448582,133.71,133.67,8.17380079]
[1767883845394,5.6448582,133.69,133.66,13.66]
[1767883845689,5.6448582,133.68,133.65,8.174759]
[1767883845893,5.6448582,133.7,133.66,7.48155195]
[1767883846195,5.6448582,133.7,133.66,8.17441798]
[1767883846379,40.35144611,133.73,133.66,8.17441798]
[1767883846575,40.35144611,133.73,133.67,7.48102841]
[1767883846576,5.6448582,133.7,133.67,7.48102841]
[1767883846886,21.65706191,133.73,133.67,7.48102841]
[1767883846887,0.1,133.73,133.69,0.69286603]
[1767883847197,5.6448582,133.72,133.69,0.69286603]
[1767883847998,5.6448582,133.71,133.69,0.69286603]
[1767883848290,0.1,133.73,133.69,0.69286603]
[1767883848467,5.6448582,133.71,133.69,0.69286603]
[1767883849076,5.6448582,133.71,133.67,0.69286603]
[1767883849288,5.6448582,133.68,133.64,0.69286603]
[1767883849470,7.47831289,133.72,133.67,0.69286603]
[1767883849675,5.6448582,133.71,133.67,0.69286603]
[1767883849888,7.67695067,133.73,133.67,8.17387988]
[1767883850087,5.6448582,133.71,133.67,8.17387988]
[1767883850396,5.6448582,133.71,133.67,8.17380661]
[1767883850593,0.1,133.73,133.68,0.69286603]
[1767883850794,0.1,133.75,133.72,0.69286603]
[1767883851014,0.1,133.75,133.71,6.33772423]
[1767883851485,5.7448582,133.75,133.71,0.69286603]
[1767883851865,5.6448582,133.74,133.71,0.69286603]
[1767883852184,5.6448582,133.73,133.69,14.35286603]
[1767883852902,0.1,133.75,133.69,0.69286603]
[1767883853081,7.47719455,133.74,133.69,0.69286603]
[1767883853277,5.6448582,133.73,133.69,0.69286603]
[1767883853591,5.6448582,133.73,133.69,6.33772423]
[1767883853894,5.6448582,133.71,133.67,0.69286603]
[1767883854093,5.6448582,133.73,133.69,6.33772423]
[1767883854307,7.57686455,133.75,133.7,0.69286603]
[1767883854308,0.1,133.75,133.7,0.69286603]
[1767883854491,5.7448582,133.75,133.71,0.69286603]
[1767883854697,5.6448582,133.74,133.71,0.69286603]
[1767883855000,0.1,133.75,133.72,0.69286603]
[1767883855574,5.7448582,133.75,133.7,6.33772423]
[1767883855789,5.7448582,133.75,133.7,0.69286603]
[1767883855790,5.6448582,133.74,133.7,0.69286603]
[1767883856496,0.1,133.75,133.69,0.69286603]
[1767883856497,0.20217059,133.75,133.69,0.69286603]
[1767883856808,5.6448582,133.72,133.69,0.69286603]
[1767883857102,0.20217059,133.75,133.69,0.69286603]
[1767883857103,5.6448582,133.73,133.69,0.69286603]
[1767883857310,7.47817646,133.73,133.67,0.69286603]
[1767883857482,5.6448582,133.73,133.68,6.33772423]
[1767883857688,5.6448582,133.73,133.69,0.69286603]
[1767883858008,7.67588139,133.75,133.69,6.33772423]
[1767883858209,5.6448582,133.73,133.69,6.33772423]
[1767883858381,7.67588139,133.75,133.69,0.69286603]
[1767883858783,5.6448582,133.73,133.69,0.69286603]
[1767883858985,5.6448582,133.7,133.66,13.66]
[1767883859190,5.6448582,133.67,133.63,0.69286603]
[1767883859988,5.6448582,133.66,133.63,0.69286603]
[1767883860199,5.6448582,133.65,133.61,14.35286603]
[1767883860504,5.6448582,133.67,133.63,0.69286603]
[1767883861008,5.6448582,133.66,133.63,0.69286603]
[1767883861303,5.6448582,133.64,133.59,0.69286603]
[1767883861481,0.69724331,133.66,133.59,0.69286603]
[1767883861878,5.6448582,133.63,133.59,0.69286603]
[1767883862099,13.66,133.69,133.62,0.69286603]
[1767883862305,13.66,133.69,133.61,13.12929621]
[1767883862306,5.6448582,133.68,133.64,0.67629015]
[1767883862604,5.6448582,133.7,133.66,0.67629015]
[1767883862804,7.4785081,133.72,133.67,0.67629015]
[1767883862982,5.6448582,133.72,133.68,0.67629015]
[1767883863182,13.12281827,133.73,133.68,6.32114835]
[1767883863379,5.6448582,133.73,133.68,6.32114835]
[1767883863782,5.7448582,133.75,133.7,0.67629015]
[1767883863990,0.1,133.75,133.71,5.6448582]
[1767883864210,0.1,133.75,133.71,6.32114835]
[1767883864384,5.6448582,133.74,133.69,6.32114835]
[1767883864589,5.6448582,133.74,133.7,0.67629015]
[1767883864903,5.75013629,133.74,133.69,5.6448582]
[1767883865297,5.7448582,133.75,133.7,6.31259573]
[1767883865606,0.1,133.75,133.71,6.31259573]
[1767883865804,0.1,133.75,133.72,5.6448582]
[1767883866403,0.099,133.8,133.74,5.6448582]
[1767883866605,5.7438582,133.8,133.73,13.66]
[1767883866828,0.57926167,133.82,133.75,5.6448582]
[1767883867010,0.57926167,133.82,133.74,13.66]
[1767883867306,5.6448582,133.8,133.75,5.6448582]
[1767883867490,5.6448582,133.8,133.74,13.66]
[1767883867693,5.6448582,133.79,133.75,0.66773753]
[1767883867910,13.11857151,133.81,133.75,0.66773753]
[1767883868401,5.6448582,133.8,133.75,6.31259573]
[1767883868910,13.11857151,133.81,133.76,6.31259573]
[1767883869106,13.11857151,133.81,133.76,6.25259577]
[1767883869298,7.47371331,133.81,133.76,6.25259577]
[1767883869501,13.11857151,133.81,133.76,6.25259577]
[1767883870423,5.6448582,133.8,133.76,0.60773757]
[1767883870612,13.11857151,133.81,133.76,6.25259577]
[1767883870994,5.6448582,133.77,133.71,0.66773753]
[1767883871303,5.6448582,133.75,133.72,0.66773753]
[1767883871620,5.6448582,133.75,133.7,6.31259573]
[1767883871802,0.63926163,133.77,133.7,6.31259573]
[1767883872003,26.16040061,133.79,133.69,13.64]
[1767883872004,5.6448582,133.73,133.69,13.64]
[1767883872419,5.6448582,133.72,133.69,13.64]
[1767883872620,22.84432314,133.78,133.66,0.66773753]
[1767883872621,0.62337417,133.71,133.66,0.66773753]
[1767883872832,0.28432314,133.75,133.67,5.6448582]
[1767883872833,0.63926163,133.73,133.67,5.6448582]
[1767883873126,0.63926163,133.73,133.67,6.31259573]
[1767883873127,5.6448582,133.72,133.67,6.31259573]
[1767883873348,5.6448582,133.73,133.69,0.66773753]
[1767883873618,5.6448582,133.73,133.65,14.30773753]
[1767883873619,5.6448582,133.71,133.65,14.30773753]
[1767883873835,26.16873204,133.75,133.67,0.66773753]
[1767883874126,26.16873204,133.75,133.69,0.66773753]
[1767883874127,5.6448582,133.72,133.69,0.66773753]
[1767883874354,7.4762738,133.76,133.71,0.66773753]
[1767883874529,5.6448582,133.81,133.76,0.66773753]
[1767883874820,5.6448582,133.79,133.74,6.31259573]
[1767883875011,5.6448582,133.79,133.75,0.66773753]
[1767883875413,5.6448582,133.82,133.79,0.66773753]
[1767883875817,91.79931925,133.87,133.79,6.31259573]
[1767883875818,26.24479347,133.87,133.79,6.31259573]
[1767883876017,5.6448582,133.83,133.79,5.6448582]
[1767883876215,5.6448582,133.83,133.77,0.66773753]
[1767883876407,5.6448582,133.83,133.78,5.6448582]
[1767883876614,9.14059144,133.82,133.77,9.80832897]
[1767883876815,9.14059144,133.83,133.78,9.14059144]
[1767883877009,9.14059144,133.82,133.77,9.80832897]
[1767883877210,9.14059144,133.81,133.75,0.66773753]
[1767883877425,72.73505249,133.87,133.8,9.80832897]
[1767883877426,0.1,133.87,133.8,9.80832897]
[1767883877608,0.1,133.87,133.83,9.14059144]
[1767883877920,0.1,133.87,133.85,9.14059144]
[1767883878151,0.1,133.87,133.83,9.14059144]
[1767883878317,13.74,133.87,133.83,9.14059144]
[1767883878650,9.14059144,133.85,133.8,9.14059144]
[1767883878818,13.64,133.84,133.8,9.14059144]
[1767883879014,13.64,133.84,133.78,0.66773753]
[1767883879355,7.47049155,133.86,133.81,9.14059144]
[1767883879650,9.14059144,133.86,133.82,9.14059144]
[1767883879831,13.64,133.85,133.81,9.14059144]
[1767883880141,7.57008998,133.87,133.82,9.14059144]
[1767883880321,16.71068142,133.87,133.82,9.14059144]
[1767883880516,0.1,133.87,133.82,9.80832897]
[1767883880716,17.77456703,133.94,133.88,0.66773753]
[1767883881020,13.64,133.93,133.89,9.14059144]
[1767883881215,34.38132039,133.94,133.85,0.66773753]
[1767883881216,22.78059144,133.92,133.85,0.66773753]
[1767883881442,7.46825989,133.9,133.85,9.14059144]
[1767883881649,16.70756472,133.91,133.86,9.14059144]
[1767883881844,13.64,133.9,133.86,0.66773753]
[1767883882144,13.64,133.89,133.87,9.14059144]
[1767883882329,13.64,133.88,133.87,9.14059144]
[1767883882525,7.56594897,133.93,133.87,9.14059144]
[1767883882742,13.64,133.92,133.86,0.66773753]
[1767883882916,13.64,133.92,133.86,9.80832897]
[1767883883119,9.14059144,133.91,133.86,0.66773753]
[1767883883436,30.24908309,133.9,133.84,0.66773753]
[1767883883642,21.10849165,133.9,133.86,9.14059144]
[1767883883839,13.64,133.89,133.84,0.66773753]
[1767883884025,13.64,133.89,133.85,9.14059144]
[1767883884341,13.64,133.89,133.83,9.14059144]
[1767883884342,9.14059144,133.88,133.83,9.14059144]
[1767883885025,13.64,133.87,133.83,9.14059144]
[1767883885430,9.14059144,133.88,133.83,9.14059144]
[1767883885431,13.64,133.86,133.83,9.14059144]
[1767883885657,13.64,133.86,133.82,0.66773753]
[1767883885954,22.78059144,133.86,133.82,0.66773753]
[1767883886156,13.64,133.86,133.83,9.14059144]
[1767883886336,7.47037474,133.87,133.82,9.14059144]
[1767883886536,7.47037474,133.87,133.8,0.66773753]
[1767883886537,9.14059144,133.86,133.8,0.66773753]
[1767883886745,13.64,133.85,133.82,9.14059144]
[1767883887245,43.90612549,133.94,133.85,0.66773753]
[1767883887455,7.46714456,133.92,133.88,9.14059144]
[1767883887760,26.91515847,133.94,133.89,9.80832897]
[1767883887953,13.64,133.91,133.89,9.80832897]
[1767883888426,13.64,133.9,133.89,9.80832897]
[1767883888939,13.64,133.9,133.87,0.66773753]
[1767883889256,1e-08,133.89,133.86,8.13801651]
[1767883889453,1e-08,133.89,133.84,1.41489831]
[1767883889653,0.09906338,133.92,133.84,0.66773753]
[1767883889972,13.74527584,133.91,133.82,0.66773753]
[1767883890261,0.10521433,133.89,133.82,0.66773753]
[1767883890442,9.14059144,133.87,133.82,9.80832897]
[1767883891054,0.10540262,133.93,133.85,0.66773753]
[1767883891231,0.10540262,133.93,133.82,6.6801107]
[1767883891232,17.77456703,133.94,133.89,9.14059144]
[1767883891435,13.64,133.97,133.93,9.14059144]
[1767883891637,13.64,133.97,133.94,9.14059144]
[1767883891944,13.64,133.96,133.94,9.14059144]
[1767883892148,0.65572422,133.99,133.95,9.14059144]
[1767883892453,13.64,133.96,133.92,7.46696139]
[1767883892661,13.64,133.96,133.94,9.14059144]
[1767883893033,0.65572422,133.99,133.95,9.14059144]
[1767883893242,13.64,133.98,133.95,9.14059144]
[1767883893937,17.71924151,134.0,133.95,9.14059144]
[1767883894139,8.57865007,134.0,133.96,9.14059144]
[1767883894355,23.47838056,133.99,133.93,0.6891192]
[1767883894553,13.64,133.98,133.95,9.14059144]
[1767883894861,14.33778912,133.98,133.96,9.14059144]
[1767883895239,13.64,133.98,133.97,9.14059144]
[1767883895459,0.4181037,134.0,133.97,9.14059144]
[1767883895635,13.74,134.01,133.99,9.14059144]
[1767883895839,0.1,134.01,133.97,0.6891192]
[1767883896147,0.69778912,134.04,133.97,0.6891192]
[1767883896462,0.69778912,134.15,134.06,0.6891192]
[1767883896757,0.1,134.2,134.14,9.82971064]
[1767883896932,13.74,134.2,134.18,9.14059144]
[1767883897137,0.1,134.2,134.16,9.14059144]
[1767883897351,13.64,134.21,134.14,0.6891192]
[1767883897551,4.39245222,134.26,134.18,9.14059144]
[1767883897733,9.14059144,134.25,134.2,9.14059144]
[1767883898033,13.64,134.24,134.2,9.14059144]
[1767883898233,0.5181037,134.26,134.22,9.14059144]
[1767883898234,13.64,134.25,134.22,9.14059144]
[1767883898436,13.64,134.25,134.2,0.6891192]
[1767883898634,0.5181037,134.26,134.2,0.6891192]
[1767883898852,0.2,134.29,134.26,0.6891192]
[1767883899074,7.64668501,134.29,134.24,0.6891192]
[1767883899235,7.64668501,134.29,134.15,22.65010801]
[1767883899236,0.20285247,134.27,134.18,0.6891192]
[1767883899437,9.14059144,134.25,134.2,9.14059144]
[1767883899673,7.44823476,134.26,134.21,9.82971064]
[1767883899857,9.14059144,134.25,134.21,0.6891192]
[1767883900061,9.14059144,134.23,134.19,0.6891192]
[1767883900438,39.68882168,134.26,134.19,0.6891192]
[1767883900439,9.14059144,134.24,134.19,0.6891192]
[1767883900686,7.54612983,134.28,134.21,6.6801107]
[1767883900854,7.44712983,134.28,134.24,0.6891192]
[1767883901283,9.14059144,134.27,134.17,13.62]
[1767883901486,9.14059144,134.26,134.21,9.14059144]
[1767883901689,7.44878957,134.25,134.21,9.14059144]
[1767883901858,16.58938101,134.25,134.17,13.90432314]
[1767883902062,7.44878957,134.25,134.2,9.14059144]
[1767883902678,16.58938101,134.25,134.2,9.14059144]
[1767883902884,16.58938101,134.25,134.21,9.14059144]
[1767883902885,7.44878957,134.25,134.21,9.14059144]
[1767883903086,9.14059144,134.24,134.13,13.62]
[1767883903385,9.14059144,134.24,134.2,9.82971064]
[1767883903585,14.45783697,134.28,134.2,0.6891192]
[1767883903586,16.5888262,134.26,134.2,0.6891192]
[1767883903791,16.5888262,134.26,134.21,9.82971064]
[1767883904084,9.14059144,134.24,134.2,9.14059144]
[1767883904286,9.63115174,134.25,134.2,9.14059144]
[1767883904475,0.4905603,134.25,134.21,9.14059144]
[1767883904993,0.2,134.29,134.25,0.6891192]
[1767883905172,0.2,134.29,134.24,9.14059144]
[1767883905173,0.2,134.29,134.26,0.6891192]
[1767883905371,7.44555081,134.31,134.28,9.14059144]
[1767883905573,0.1,134.32,134.28,9.14059144]
[1767883905767,9.24059144,134.32,134.28,9.14059144]
[1767883905967,9.24059144,134.32,134.26,9.14059144]
[1767883905968,9.14059144,134.31,134.26,9.14059144]
[1767883906181,0.69778912,134.29,134.22,0.6891192]
[1767883906384,9.14059144,134.28,134.23,9.82971064]
[1767883906586,9.24059144,134.3,134.24,0.6891192]
[1767883906794,9.14059144,134.29,134.25,9.14059144]
[1767883907098,9.14059144,134.29,134.24,9.82971064]
[1767883907391,0.1,134.3,134.27,9.14059144]
[1767883907692,0.1,134.3,134.26,0.6891192]
[1767883908077,9.14059144,134.28,134.18,0.74526755]
[1767883908398,9.14059144,134.28,134.11,37.82723929]
[1767883908399,0.69752433,134.28,134.21,9.82971064]
[1767883908690,9.14059144,134.26,134.22,0.6891192]
[1767883908866,9.14059144,134.23,134.18,0.6891192]
[1767883909069,9.14059144,134.2,134.15,9.82971064]
[1767883909286,0.68493073,134.22,134.17,9.14059144]
[1767883909490,9.14059144,134.22,134.17,9.14059144]
[1767883909795,9.14059144,134.2,134.13,0.6891192]
[1767883910293,8.13538789,134.22,134.13,0.6891192]
[1767883910294,0.6976554,134.21,134.14,9.14059144]
[1767883910594,9.14059144,134.15,134.1,1.43483135]
[1767883910766,9.14059144,134.14,134.09,9.14059144]
[1767883910965,9.14059144,134.16,134.12,9.14059144]
[1767883911170,14.29778912,134.17,134.11,9.14059144]
[1767883911366,0.69778912,134.22,134.16,0.6891192]
[1767883911565,15.0,134.31,134.1,7.45683909]
[1767883911566,7.45267551,134.18,134.1,14.88266194]
[1767883911786,9.14059144,134.17,134.11,0.6891192]
[1767883911984,9.83811577,134.17,134.12,9.14059144]
[1767883912380,9.14059144,134.16,134.11,9.82971064]
[1767883912577,23.43811577,134.17,134.12,9.14059144]
[1767883912898,9.82527036,134.16,134.11,9.14059144]
[1767883913193,13.6,134.16,134.12,9.14059144]
[1767883913693,22.74059144,134.16,134.12,9.14059144]
[1767883913870,22.74059144,134.16,134.11,0.6891192]
[1767883914198,13.6,134.16,134.12,9.14059144]
[1767883914405,9.14059144,134.16,134.11,0.6891192]
[1767883914693,9.8251406,134.16,134.09,8.14661415]
[1767883914905,0.69739587,134.13,134.07,1.43499821]
[1767883915071,9.83838056,134.13,134.07,9.14059144]
[1767883915271,22.74059144,134.12,134.07,9.14059144]
[1767883915491,22.74059144,134.12,134.05,0.6891192]
[1767883915694,9.14059144,134.11,134.06,9.14059144]
[1767883915897,26.78086099,134.12,134.06,9.14059144]
[1767883916203,9.8251406,134.1,134.04,0.2]
[1767883916415,9.8251406,134.1,134.04,9.34059144]
[1767883916616,9.8251406,134.1,134.04,0.2]
[1767883916825,22.74059144,134.09,134.04,9.34059144]
[1767883917183,9.14059144,134.09,134.04,9.34059144]
[1767883917411,22.74059144,134.09,134.04,9.34059144]
[1767883917719,13.6,134.09,134.05,9.14059144]
[1767883918081,21.05800875,134.09,134.04,10.02971064]
[1767883918307,9.42491458,134.13,134.08,9.14059144]
[1767883918608,9.42491458,134.13,134.06,0.6891192]
[1767883918609,13.6,134.11,134.07,9.14059144]
[1767883918778,16.59673408,134.12,134.04,7.66038034]
[1767883918779,8.15393176,134.12,134.04,7.66038034]
[1767883918981,0.69778912,134.1,134.04,0.2]
[1767883919182,9.14059144,134.11,134.04,0.2]
[1767883919498,13.6,134.11,134.07,9.14059144]
[1767883919693,0.69778912,134.15,134.09,9.14059144]
[1767883919875,9.14059144,134.13,134.08,9.14059144]
[1767883920083,23.43838056,134.14,134.09,9.14059144]
[1767883920284,0.69778912,134.12,134.08,9.14059144]
[1767883920615,14.29778912,134.14,134.09,9.14059144]
[1767883920792,0.69778912,134.11,134.06,0.74593465]
[1767883920992,9.83838056,134.09,134.04,9.34059144]
[1767883921202,0.69778912,134.09,134.04,0.2]
[1767883921515,9.14059144,134.06,133.99,1.43544355]
[1767883921812,22.74059144,134.08,134.02,0.6891192]
[1767883922014,14.29778912,134.08,134.02,9.14059144]
[1767883922189,9.14059144,134.07,134.02,9.14059144]
[1767883922505,9.14059144,134.05,134.0,0.14216157]
[1767883922712,9.14059144,134.05,134.0,7.60444439]
[1767883923282,9.8086529,134.06,134.01,7.46203078]
[1767883923482,14.26806146,134.1,134.02,0.66084365]
[1767883923682,9.14059144,134.05,134.0,0.80300522]
[1767883923990,9.14059144,134.05,134.0,17.54829464]
[1767883924227,0.66806146,134.06,134.0,0.94516679]
[1767883924398,9.8086529,134.06,134.0,8.407683]
[1767883924586,18.64539938,134.09,134.0,0.14216157]
[1767883924587,9.14059144,134.03,134.0,0.14216157]
[1767883924920,0.66806146,134.04,134.0,0.14216157]
[1767883925082,7.45889283,134.07,133.97,0.14216157]
[1767883925083,0.66806146,134.01,133.97,0.14216157]
[1767883925282,0.66806146,134.06,133.97,0.66084365]
[1767883925505,9.14059144,134.04,133.97,0.66084365]
[1767883925803,9.14059144,134.04,133.94,7.42671365]
[1767883925804,9.14059144,134.0,133.94,0.74660295]
[1767883926002,0.59395437,134.04,133.95,7.4649859]
[1767883926003,8.05450262,134.04,133.95,7.4649859]
[1767883926210,30.0,134.02,133.98,9.14059144]
[1767883926512,9.14059144,134.03,133.98,9.14059144]
[1767883928012,0.59395437,134.04,134.0,9.14059144]
[1767883928190,0.59395437,134.04,134.01,9.14059144]
[1767883928383,0.59395437,134.04,134.03,9.14059144]
[1767883928781,0.59395437,134.04,134.02,9.14059144]
[1767883928981,0.59395437,134.04,134.01,9.54367096]
[1767883929210,7.45378652,134.16,134.04,0.66084365]
[1767883929390,9.14059144,134.12,134.07,1.68161176]
[1767883929596,16.59715694,134.11,134.06,9.80143509]
[1767883929792,9.14059144,134.09,134.02,7.34095435]
[1767883930005,22.76059144,134.1,134.05,9.14059144]
[1767883930312,22.76059144,134.1,134.03,0.66084365]
[1767883930313,9.14059144,134.08,134.03,0.66084365]
[1767883930606,13.62,134.08,134.03,9.80143509]
[1767883930811,13.62,134.08,134.04,9.14059144]
[1767883931014,13.62,134.08,134.03,8.12182134]
[1767883931194,13.62,134.08,134.04,9.14059144]
[1767883931394,22.76059144,134.08,134.03,0.66084365]
[1767883931594,9.14059144,134.07,134.02,9.14059144]
[1767883931784,22.76059144,134.07,134.02,9.14059144]
[1767883931988,9.14059144,134.04,133.97,0.66084365]
[1767883932187,0.66806146,134.05,133.98,9.80143509]
[1767883932188,9.14059144,134.03,133.98,9.80143509]
[1767883932412,13.62,134.04,134.01,9.14059144]
[1767883932791,9.14059144,134.05,134.0,9.80143509]
[1767883933114,13.62,134.05,134.01,9.14059144]
[1767883933299,13.62,134.05,134.0,9.80143509]
[1767883933493,14.28806146,134.05,134.01,9.14059144]
[1767883933816,0.66806146,134.04,134.0,9.14059144]
[1767883933995,0.66806146,134.04,134.01,9.14059144]
[1767883934309,14.28806146,134.04,134.01,9.14059144]
[1767883934512,0.67899367,134.07,134.03,9.14059144]
[1767883934713,13.62,134.09,134.06,9.82244439]
[1767883934895,7.45676365,134.11,134.04,0.68185295]
[1767883934896,8.13575732,134.11,134.04,0.68185295]
[1767883935221,14.29899367,134.1,134.06,9.14059144]
[1767883935506,13.62,134.09,134.05,9.14059144]
[1767883935911,13.62,134.09,134.04,0.68185295]
[1767883935912,13.62,134.09,134.06,9.14059144]
[1767883936592,13.62,134.09,134.07,9.14059144]
[1767883936826,28.45719712,134.14,134.08,9.14059144]
[1767883937005,13.62,134.13,134.1,9.14059144]
[1767883937301,0.67899367,134.14,134.12,9.14059144]
[1767883937510,0.1236708,134.12,134.07,0.68185295]
[1767883937711,0.67899367,134.17,134.11,9.14059144]
[1767883937911,18.63097712,134.19,134.15,1.8e-07]
[1767883937912,0.67899367,134.19,134.15,1.8e-07]
[1767883938118,0.67899367,134.19,134.11,0.68185295]
[1767883938326,23.43958511,134.18,134.13,9.14059144]
[1767883938526,23.43958511,134.18,134.14,5.59393228]
[1767883938527,0.67899367,134.18,134.14,5.59393228]
[1767883938741,14.29899367,134.2,134.16,5.59393228]
[1767883938915,0.67899367,134.2,134.16,5.59393228]
[1767883939223,14.29899367,134.2,134.16,5.59393228]
[1767883939540,6.27292595,134.2,134.15,5.59393228]
[1767883939745,0.67899367,134.2,134.15,5.59393228]
[1767883939901,0.67899367,134.2,134.16,5.59393228]
[1767883940197,6.27292595,134.26,134.19,6.27578523]
[1767883940397,6.27292595,134.26,134.21,5.59393228]
[1767883940614,6.27292595,134.24,134.16,0.96617609]
[1767883940929,0.67899367,134.24,134.21,5.59393228]
[1767883941103,0.67899367,134.24,134.17,0.68185295]
[1767883941104,0.67899367,134.27,134.23,5.59393228]
[1767883941625,7.44823476,134.26,134.2,0.68185295]
[1767883941812,8.12722843,134.26,134.21,5.59393228]
[1767883942201,8.12722843,134.26,134.17,8.13496689]
[1767883942202,0.67899367,134.25,134.17,8.13496689]
[1767883942428,6.27292595,134.25,134.2,5.59393228]
[1767883942720,0.67899367,134.23,134.15,0.14216157]
[1767883942894,0.28432314,134.25,134.22,5.59393228]
[1767883942895,0.67899367,134.25,134.22,5.59393228]
[1767883943099,0.67899367,134.25,134.17,0.68185295]
[1767883943100,13.62,134.26,134.23,5.59393228]
[1767883943323,5.59393228,134.26,134.21,6.27578523]
[1767883943537,6.27292595,134.24,134.17,0.68185295]
[1767883943832,0.67899367,134.23,134.19,5.59393228]
[1767883943999,13.04382489,134.24,134.2,5.59393228]
[1767883944000,7.44989261,134.24,134.2,5.59393228]
[1767883944203,13.72180127,134.25,134.2,5.59393228]
[1767883944399,0.67899367,134.25,134.21,5.59393228]
[1767883944626,8.12782571,134.25,134.18,0.68185295]
[1767883944929,13.72175799,134.25,134.18,0.68185295]
[1767883945124,0.67899367,134.25,134.21,5.59393228]
[1767883945323,7.4483859,134.26,134.22,5.59393228]
[1767883945701,7.4483859,134.26,134.14,21.30992362]
[1767883945702,13.71548046,134.24,134.18,6.27578523]
[1767883945902,5.59393228,134.22,134.18,0.68185295]
[1767883946321,5.59393228,134.23,134.18,6.27578523]
[1767883946722,0.67227095,134.22,134.18,5.59393228]
[1767883946931,0.67227095,134.22,134.15,8.27823248]
[1767883946932,5.59393228,134.22,134.17,0.68185295]
[1767883947423,5.59393228,134.23,134.18,0.68185295]
[1767883947604,5.59393228,134.21,134.16,6.27578523]
[1767883947807,5.59393228,134.21,134.16,0.68185295]
[1767883948012,5.59393228,134.21,134.16,6.27578523]
[1767883948641,19.30135042,134.25,134.18,0.68185295]
[1767883948821,5.59393228,134.24,134.18,0.68185295]
[1767883949017,5.59393228,134.22,134.18,0.68185295]
[1767883949207,5.59393228,134.22,134.16,0.68185295]
[1767883949415,5.59393228,134.2,134.16,0.68185295]
[1767883949732,5.59393228,134.19,134.14,0.68185295]
[1767883950109,5.59393228,134.19,134.14,6.27578523]
[1767883950444,5.59393228,134.16,134.11,5.59393228]
[1767883950725,5.59393228,134.16,134.11,0.68185295]
[1767883950953,5.59393228,134.15,134.11,0.68185295]
[1767883951108,14.27873008,134.17,134.11,0.68185295]
[1767883951301,5.59393228,134.15,134.11,0.68185295]
[1767883952009,6.27259971,134.15,134.1,5.59393228]
[1767883952227,0.71562446,134.18,134.13,5.59393228]
[1767883952614,0.63593925,134.17,134.13,5.59393228]
[1767883952810,5.59393228,134.17,134.12,0.67723315]
[1767883953233,8.1678149,134.19,134.13,6.27116543]
[1767883953531,8.1678149,134.19,134.11,7.45651064]
[1767883953532,5.59393228,134.16,134.11,0.67723315]
[1767883953832,13.04774366,134.16,134.11,6.27116543]
[1767883954017,13.04774366,134.16,134.11,0.67723315]
[1767883954226,13.04774366,134.16,134.11,6.27116543]
[1767883954420,5.59393228,134.16,134.11,0.67723315]
[1767883954620,5.59393228,134.16,134.07,1.03020215]
[1767883954621,5.59393228,134.14,134.09,0.67723315]
[1767883954930,5.59393228,134.14,134.08,13.72938166]
[1767883955231,5.59393228,134.14,134.08,8.13544938]
[1767883955435,0.7140466,134.15,134.08,0.67723315]
[1767883955436,5.59393228,134.13,134.08,0.67723315]
[1767883955641,0.71328114,134.13,134.08,0.67723315]
[1767883955832,5.59393228,134.13,134.08,0.67723315]
[1767883956037,5.59393228,134.14,134.09,0.67723315]
[1767883956214,14.0,134.17,134.12,0.67723315]
[1767883956421,5.59393228,134.18,134.1,0.67723315]
[1767883956635,6.30955674,134.19,134.14,5.59393228]
[1767883956976,19.19393228,134.19,134.14,5.59393228]
[1767883957121,19.19393228,134.19,134.1,1.4229453]
[1767883957122,13.04510056,134.21,134.1,1.70726844]